bitfinex/quotes_ETHUSD_20240925
["timestamp","ask_amount","ask_price","bid_price","bid_amount"]
[1727285007203,3.80186167,2599.7,2599.6,7.45296207]
[1727285008007,3.80186167,2599.7,2599.6,11.07988802]
[1727285008008,2.19136495,2599.7,2599.6,11.07988802]
[1727285008210,1.79062547,2599.7,2599.6,11.00296207]
[1727285008564,1.79062547,2599.7,2599.6,10.45296207]
[1727285008565,2.19136495,2599.7,2599.6,10.45296207]
[1727285010106,2.19136495,2599.7,2599.6,11.00296207]
[1727285010274,1.79063459,2599.7,2599.6,11.00296207]
[1727285011408,1.79063513,2599.7,2599.6,11.00296207]
[1727285011916,1.79063513,2599.7,2599.6,11.73012904]
[1727285012110,0.08090846,2599.7,2599.6,11.73012904]
[1727285012416,0.08090846,2599.7,2599.6,12.82082481]
[1727285013019,0.08090846,2599.7,2599.6,11.00296207]
[1727285013379,25.0,2600.0,2599.9,3.8463]
[1727285013578,25.0,2600.0,2599.9,7.45266207]
[1727285013910,25.0,2600.0,2599.9,11.00266207]
[1727285021229,25.0,2600.0,2599.9,3.8463]
[1727285021518,27.57529391,2600.0,2599.5,3.84677]
[1727285021722,25.07529391,2600.0,2599.9,3.8463]
[1727285023221,25.07529391,2600.0,2599.9,4.3963]
[1727285023824,25.07529391,2600.0,2599.9,3.8463]
[1727285027734,25.07529391,2600.0,2599.8,7.45280207]
[1727285027942,0.7952,2599.9,2599.7,3.8465]
[1727285028242,0.87078091,2599.9,2599.8,3.84644]
[1727285029900,0.07558091,2599.9,2599.8,7.45280207]
[1727285032639,0.07558091,2599.9,2599.8,3.84644]
[1727285033638,0.07558091,2599.9,2599.7,3.84657]
[1727285035741,0.07558091,2599.9,2599.5,6.84683]
[1727285035742,0.07558091,2599.9,2599.6,3.84672]
[1727285035914,0.07558091,2599.9,2599.7,3.84659]
[1727285036650,0.07558091,2599.9,2599.8,3.84644]
[1727285037144,0.07558091,2599.9,2599.8,7.45280207]
[1727285040358,0.07558091,2599.9,2599.7,3.84659]
[1727285040730,0.07558091,2599.9,2599.6,3.84667]
[1727285041152,0.07558091,2599.9,2599.1,11.07896705]
[1727285041153,3.84682,2599.6,2599.1,11.07896705]
[1727285041334,0.8255,2599.5,2599.1,3.84737]
[1727285041648,0.8255,2599.5,2599.2,3.84725]
[1727285041832,0.07542514,2599.4,2599.3,3.84718]
[1727285043162,0.07542514,2599.4,2599.3,3.92411534]
[1727285043362,0.07542514,2599.4,2599.3,3.92411537]
[1727285043765,0.7705,2599.7,2599.5,3.84682]
[1727285043966,0.7705,2599.7,2599.6,3.84674]
[1727285045039,1.70213535,2599.8,2599.6,7.45310207]
[1727285045566,1.70213535,2599.7,2599.5,3.84688]
[1727285045770,0.79898385,2599.7,2599.5,3.84688]
[1727285045931,0.79828148,2599.7,2599.5,3.84688]
[1727285046560,0.79828148,2599.7,2599.4,7.45329207]
[1727285046765,0.79828148,2599.7,2599.3,3.0]
[1727285046766,1.56378148,2599.6,2599.3,3.0]
[1727285046935,1.56378148,2599.6,2598.9,6.84771]
[1727285046936,5.54716378,2599.5,2599.1,3.84747]
[1727285047140,1.70015508,2599.4,2599.1,3.84747]
[1727285047481,4.64524148,2599.5,2599.1,3.84747]
[1727285047954,0.79828148,2599.5,2599.1,3.84747]
[1727285048159,0.79828148,2599.5,2599.1,7.69486]
[1727285048468,0.79828148,2599.5,2599.1,3.84739]
[1727285048640,0.79828148,2599.5,2599.2,3.84732]
[1727285048843,4.61228,2599.6,2599.2,3.84732]
[1727285048844,1.56378148,2599.6,2599.3,3.84711]
[1727285049670,1.56378148,2599.6,2599.3,7.69421]
[1727285049970,1.56378148,2599.6,2599.3,3.8471]
[1727285051266,0.7655,2599.6,2599.3,3.8471]
[1727285051466,1.56378148,2599.6,2599.4,3.84702]
[1727285051675,1.56378148,2599.6,2599.3,3.8471]
[1727285052740,0.07465415,2599.5,2599.4,3.60636207]
[1727285053071,0.07465415,2599.5,2599.4,7.45340207]
[1727285054136,0.07465415,2599.5,2599.4,7.53033602]
[1727285054332,0.7853,2599.8,2599.6,3.84667]
[1727285054565,0.79828148,2599.9,2599.6,3.84667]
[1727285054566,0.79828148,2599.9,2599.7,3.60636207]
[1727285054766,1.70002782,2599.9,2599.7,3.60636207]
[1727285055078,25.79828148,2600.0,2599.9,3.8463]
[1727285055281,26.70000606,2600.0,2599.9,7.45266207]
[1727285055462,25.0,2600.0,2599.9,7.45266207]
[1727285055769,26.70006262,2600.0,2599.9,7.45266207]
[1727285056488,25.0,2600.0,2599.9,8.00266207]
[1727285056645,25.0,2600.0,2599.9,11.00266207]
[1727285059088,25.0,2600.0,2599.6,3.0]
[1727285059280,25.0,2600.0,2599.5,3.60636207]
[1727285059281,31.34622,2600.0,2599.5,3.60636207]
[1727285059489,31.34622,2600.0,2599.2,3.84722]
[1727285059490,2.45352602,2599.9,2599.3,10.45354207]
[1727285059646,5.39808148,2599.9,2599.4,3.84703]
[1727285059847,1.69999477,2599.8,2599.4,3.84703]
[1727285060069,5.54644477,2599.8,2599.5,3.60636207]
[1727285060268,3.84645,2599.8,2599.5,3.60636207]
[1727285060747,4.64473148,2599.8,2599.5,3.60636207]
[1727285062347,0.79828148,2599.8,2599.5,3.60636207]
[1727285062545,4.64512148,2599.6,2599.1,3.84742]
[1727285063552,1.69973428,2599.5,2599.1,3.84742]
[1727285063764,3.84683,2599.6,2599.1,3.84742]
[1727285063765,4.64511148,2599.6,2599.1,3.84742]
[1727285063970,5.5466476,2599.5,2598.9,6.84777]
[1727285064209,2.4723094,2599.4,2598.9,3.84777]
[1727285064497,1.57088148,2599.4,2599.0,3.84755]
[1727285064704,1.57088148,2599.4,2599.1,3.60876666]
[1727285065204,1.57088148,2599.4,2599.3,3.60876666]
[1727285065410,2.47164027,2599.4,2599.3,3.60876666]
[1727285066108,0.79828148,2599.5,2599.3,3.60876666]
[1727285066304,0.79828148,2599.5,2599.3,7.45594666]
[1727285066608,0.7855,2599.6,2599.3,7.45594666]
[1727285066772,0.7855,2599.6,2599.3,3.60876666]
[1727285066978,2.4847331,2599.6,2599.3,7.45594666]
[1727285067189,1.58378148,2599.6,2599.5,7.45565666]
[1727285067383,1.19742223,2599.7,2599.5,7.45565666]
[1727285067384,0.79828148,2599.7,2599.5,3.60876666]
[1727285067790,0.07191547,2599.6,2599.3,3.84704]
[1727285068002,0.87019695,2599.6,2599.3,7.45580666]
[1727285068208,0.79828148,2599.5,2599.3,3.60876666]
[1727285068410,1.77128493,2599.5,2599.3,3.60876666]
[1727285068571,0.87023803,2599.5,2599.3,3.60876666]
[1727285069799,0.87023803,2599.5,2599.2,3.84732]
[1727285070170,0.07195655,2599.5,2599.2,3.84732]
[1727285070385,0.87023803,2599.5,2599.2,3.84732]
[1727285071172,0.87023803,2599.5,2599.3,3.60876666]
[1727285071388,0.07195655,2599.5,2599.3,3.60876666]
[1727285071905,0.07195655,2599.5,2599.3,7.45594666]
[1727285072229,0.07195655,2599.5,2599.3,3.60876666]
[1727285072414,0.7747,2599.4,2599.3,3.60876666]
[1727285072732,0.7747,2599.4,2599.1,3.60876666]
[1727285073027,0.7747,2599.4,2598.7,3.0]
[1727285073028,7.69455,2599.3,2598.8,6.84791]
[1727285073231,0.90155408,2599.2,2598.8,6.84786]
[1727285073446,0.79828148,2599.2,2598.8,6.84786]
[1727285073728,0.07201404,2599.1,2598.8,6.84786]
[1727285074115,0.07201404,2599.1,2598.8,3.0]
[1727285074431,1.57298148,2599.0,2598.6,3.84822]
[1727285074732,1.57298148,2599.0,2598.7,3.84799]
[1727285074733,1.64483124,2599.0,2598.7,3.84799]
[1727285074904,0.90127068,2598.9,2598.7,3.84799]
[1727285075231,1.57298148,2599.0,2598.7,3.84799]
[1727285075435,0.07184976,2598.8,2598.7,7.45683666]
[1727285075615,0.7747,2599.0,2598.8,3.84788]
[1727285075806,0.79828148,2599.1,2598.9,7.45654666]
[1727285076003,0.79828148,2599.1,2599.0,3.84763]
[1727285076206,0.79828148,2599.2,2599.0,3.84763]
[1727285076406,1.6992696,2599.2,2599.1,3.60876666]
[1727285076606,1.6992696,2599.2,2598.9,7.45651666]
[1727285076935,0.79828148,2599.2,2598.9,3.60876666]
[1727285077117,1.69940315,2599.2,2598.9,3.60876666]
[1727285077442,1.69940315,2599.1,2598.9,3.60876666]
[1727285077732,0.79828148,2599.1,2598.9,3.60876666]
[1727285078042,0.79828148,2599.1,2598.6,3.84817]
[1727285078043,0.79828148,2599.0,2598.6,3.84817]
[1727285078206,1.69902103,2599.0,2598.6,3.84817]
[1727285078406,0.794,2598.9,2598.5,7.45712666]
[1727285078608,3.84814,2598.7,2598.2,3.84873]
[1727285078805,3.84814,2598.7,2598.3,3.0]
[1727285079016,3.84814,2598.7,2598.2,3.84873]
[1727285079245,3.84832,2598.6,2598.1,3.84896]
[1727285079535,0.794,2598.5,2598.2,3.84878]
[1727285080207,0.794,2598.5,2598.2,7.45754666]
[1727285080818,0.794,2598.5,2598.2,11.30632666]
[1727285081021,0.794,2598.5,2598.2,7.45754666]
[1727285081595,0.794,2598.5,2598.3,3.84861]
[1727285082337,0.794,2598.5,2598.2,3.60876666]
[1727285082582,0.794,2598.5,2598.2,7.45756666]
[1727285083038,0.07099529,2598.4,2598.2,7.45756666]
[1727285083606,0.07099529,2598.4,2598.3,3.84867]
[1727285084226,0.7811,2598.7,2598.4,3.84844]
[1727285084424,0.7811,2598.7,2598.5,3.60876666]
[1727285084651,0.7904,2598.9,2598.5,11.30541666]
[1727285084861,0.7904,2598.9,2598.5,7.45704666]
[1727285085034,4.63828,2598.9,2598.4,3.84843]
[1727285085238,5.43656148,2598.9,2598.4,3.84843]
[1727285085433,9.90794578,2598.9,2598.4,3.84843]
[1727285085832,6.06004578,2598.9,2598.4,3.84843]
[1727285086653,6.06004578,2598.9,2597.9,6.84919]
[1727285086654,3.84816,2598.7,2598.2,3.84881]
[1727285087047,3.84816,2598.7,2598.3,3.60876666]
[1727285087364,0.8297,2598.8,2598.5,7.45711666]
[1727285087670,0.8297,2598.8,2598.6,3.8482]
[1727285087839,0.8297,2599.0,2598.7,7.45683666]
[1727285088332,1.62798148,2599.3,2598.9,7.45654666]
[1727285088664,4.67689,2599.3,2598.9,7.45654666]
[1727285089731,0.8297,2599.3,2598.9,7.45654666]
[1727285091366,4.67692,2599.3,2598.9,7.45654666]
[1727285091762,4.67692,2599.3,2598.9,3.60876666]
[1727285094283,4.67692,2599.3,2598.9,7.45653666]
[1727285094431,5.47520148,2599.3,2598.9,7.45653666]
[1727285094768,5.47520148,2599.3,2598.9,3.60876666]
[1727285095871,0.8047,2599.2,2598.5,3.84829]
[1727285096167,0.8047,2598.8,2598.3,3.84855]
[1727285096373,3.84829,2598.6,2598.1,3.84895]
[1727285096941,3.84829,2598.6,2598.1,3.84889]
[1727285097247,3.8482,2598.7,2598.2,3.8488]
[1727285097770,1.60298148,2598.8,2598.2,3.8488]
[1727285097771,3.91622921,2598.6,2598.2,3.8488]
[1727285098478,7.76454921,2598.6,2598.1,3.84896]
[1727285098671,0.7501,2598.5,2598.1,3.84896]
[1727285099031,0.06798921,2598.4,2598.1,3.84896]
[1727285099659,0.06798921,2598.4,2598.2,3.84872]
[1727285100558,0.06798921,2598.4,2598.2,3.84878]
[1727285100766,0.06798921,2598.4,2598.3,3.84867]
[1727285101143,0.06798921,2598.4,2598.2,7.45989643]
[1727285102536,0.06798921,2598.4,2598.3,3.84867]
[1727285102948,0.764,2598.9,2598.5,3.84829]
[1727285103173,0.764,2598.9,2598.6,3.84821]
[1727285103346,0.764,2598.9,2598.7,7.45915643]
[1727285103546,1.63048148,2599.1,2598.8,3.84792]
[1727285103951,0.8322,2599.1,2598.9,7.45886643]
[1727285104280,5.04448223,2599.4,2599.2,3.84733]
[1727285104281,0.79828148,2599.4,2599.2,3.84733]
[1727285104443,1.99570371,2599.5,2599.1,3.84736]
[1727285104769,0.79828148,2599.5,2599.1,7.69473]
[1727285104976,0.79828148,2599.5,2599.1,3.84736]
[1727285105148,0.79828148,2599.5,2599.2,3.61108643]
[1727285105347,0.79828148,2599.5,2599.3,3.84711]
[1727285105747,0.79828148,2599.6,2599.4,7.45812643]
[1727285106087,0.79828148,2599.7,2599.5,3.84685]
[1727285106375,0.8049,2599.9,2599.5,3.84685]
[1727285106376,1.60318148,2599.9,2599.6,3.61108643]
[1727285106576,1.69729856,2599.8,2599.6,3.61108643]
[1727285106777,0.79828148,2599.8,2599.6,3.61108643]
[1727285106977,0.79828148,2599.8,2599.4,7.45812643]
[1727285107188,1.69741935,2599.7,2599.4,7.45812643]
[1727285107481,4.64488148,2599.7,2599.2,3.84723]
[1727285108165,0.79828148,2599.7,2599.2,3.84723]
[1727285108500,0.79828148,2599.7,2599.3,3.84716]
[1727285109300,0.79828148,2599.7,2599.4,7.45801643]
[1727285109578,0.79828148,2599.8,2599.4,3.61108643]
[1727285109782,25.79828148,2600.0,2599.8,3.84644]
[1727285109988,25.0,2600.0,2599.8,3.61108643]
[1727285110141,25.0,2600.0,2599.7,3.84645]
[1727285110579,25.0,2600.0,2599.5,3.84688]
[1727285110580,25.0,2600.0,2599.5,7.69367]
[1727285110788,1.69792011,2599.9,2599.5,7.69367]
[1727285111093,1.69792011,2599.9,2599.4,3.0]
[1727285111094,0.7567,2599.8,2599.4,3.0]
[1727285111271,1.55498148,2599.8,2599.4,6.84695]
[1727285111614,0.7567,2599.8,2599.4,6.84695]
[1727285111944,0.7567,2599.8,2599.4,3.0]
[1727285112144,1.55498148,2599.8,2599.5,3.84686]
[1727285112382,0.7567,2599.8,2599.5,3.84686]
[1727285112775,5.40146148,2599.8,2599.3,3.84711]
[1727285112974,0.96624502,2599.7,2599.2,3.0]
[1727285113151,0.8025,2599.6,2598.9,6.84769]
[1727285113351,0.8025,2599.6,2599.1,3.8474]
[1727285113579,0.8025,2599.6,2599.2,3.84724]
[1727285113580,0.0667811,2599.5,2599.2,3.84724]
[1727285114588,0.0667811,2599.5,2599.3,3.84708]
[1727285114760,0.0667811,2599.5,2599.3,7.69419]
[1727285115284,0.0667811,2599.5,2599.4,3.84704]
[1727285115647,0.79828148,2599.8,2599.5,3.84678]
[1727285115895,0.0667811,2599.5,2599.4,3.84704]
[1727285116085,0.79828148,2599.8,2599.4,3.84704]
[1727285116256,0.06735765,2599.5,2599.4,3.84704]
[1727285116457,0.79828148,2599.8,2599.5,3.84687]
[1727285117483,0.79828148,2599.8,2599.3,3.84717]
[1727285117879,0.79828148,2599.8,2599.4,3.84692]
[1727285119447,0.79828148,2599.8,2599.5,3.84681]
[1727285119755,0.79828148,2599.8,2599.5,3.84686]
[1727285119950,0.79828148,2599.8,2599.6,3.84673]
[1727285120248,1.57298148,2599.9,2599.6,3.84673]
[1727285120667,1.57298148,2599.9,2599.5,3.84686]
[1727285121467,1.57298148,2599.9,2599.5,3.8468]
[1727285121692,1.57298148,2599.9,2599.6,3.84671]
[1727285121879,1.57298148,2599.9,2599.5,3.8468]
[1727285122085,0.79828148,2599.9,2599.7,8.28604052]
[1727285122393,25.0,2600.0,2599.9,3.8463]
[1727285124096,25.0,2600.0,2599.9,4.3963]
[1727285125081,25.0,2600.0,2599.9,4.47321712]
[1727285125508,25.0,2600.0,2599.9,7.3963]
[1727285126187,25.06777739,2600.0,2599.9,7.3963]
[1727285129627,25.06777739,2600.0,2599.9,11.83585052]
[1727285130325,25.06777739,2600.0,2599.6,3.60698803]
[1727285130526,25.06777739,2600.0,2599.6,3.8466]
[1727285130694,25.06777739,2600.0,2599.7,3.84658]
[1727285131346,25.06777739,2600.0,2599.6,3.60698803]
[1727285131347,28.91393739,2600.0,2599.6,3.60698803]
[1727285131897,25.06777739,2600.0,2599.6,7.45368803]
[1727285133303,25.06777739,2600.0,2599.7,3.84658]
[1727285133630,25.06777739,2600.0,2599.8,3.60698803]
[1727285134225,25.06777739,2600.0,2599.6,7.45371803]
[1727285134613,28.91394739,2600.0,2599.6,3.60698803]
[1727285134807,28.91394739,2600.0,2599.6,7.45371803]
[1727285135339,25.06777739,2600.0,2599.6,7.45371803]
[1727285135948,25.06777739,2600.0,2599.9,3.8463]
[1727285137848,25.06777739,2600.0,2599.9,7.45328803]
[1727285142713,25.06777739,2600.0,2599.4,4.39695]
[1727285142714,25.83067739,2600.0,2599.6,7.39669]
[1727285142840,25.83067739,2600.0,2599.5,3.84687]
[1727285143027,0.7629,2599.7,2599.4,3.84704]
[1727285143226,0.7629,2599.7,2599.2,3.84723]
[1727285143454,0.7629,2599.7,2599.4,3.84697]
[1727285143724,0.06596088,2599.6,2599.4,3.84697]
[1727285143933,0.06596088,2599.6,2598.6,3.84814]
[1727285143934,0.06596088,2599.6,2598.7,3.848]
[1727285144147,0.06596088,2599.6,2599.2,3.84731]
[1727285144361,0.06596088,2599.6,2599.2,7.69457]
[1727285144522,0.06596088,2599.6,2599.3,3.84715]
[1727285145648,0.06596088,2599.6,2599.2,3.84726]
[1727285145965,4.61016,2599.3,2598.8,7.6956]
[1727285146130,0.7629,2599.3,2598.8,7.45478803]
[1727285146330,0.06552429,2599.2,2599.0,7.45458803]
[1727285146871,0.8101,2599.5,2599.4,3.84704]
[1727285147164,1.19742223,2599.8,2599.6,3.84674]
[1727285147165,0.8101,2599.8,2599.6,3.84674]
[1727285147370,0.8101,2599.8,2599.6,7.45372803]
[1727285147528,0.8101,2599.8,2599.7,3.84659]
[1727285147863,0.8101,2599.8,2599.6,7.45372803]
[1727285148537,25.79828148,2600.0,2599.7,3.84659]
[1727285148770,25.79828148,2600.0,2599.8,3.8464]
[1727285148941,25.79828148,2600.0,2599.9,3.8463]
[1727285149148,25.0,2600.0,2599.9,3.8463]
[1727285149470,26.69973233,2600.0,2599.8,3.60698803]
[1727285149764,25.79828148,2600.0,2599.8,3.60698803]
[1727285150264,25.79828148,2600.0,2599.7,3.84649]
[1727285150265,25.79828148,2600.0,2599.7,3.84658]
[1727285150475,25.79828148,2600.0,2599.7,7.69307]
[1727285150650,25.79828148,2600.0,2599.7,3.84649]
[1727285150651,1.69986473,2599.9,2599.7,3.84649]
[1727285150966,25.79828148,2600.0,2599.7,3.84649]
[1727285151444,25.79828148,2600.0,2599.8,3.84637]
[1727285152765,25.79828148,2600.0,2599.8,3.84636]
[1727285153879,25.79828148,2600.0,2599.6,3.84663]
[1727285153880,1.7001488,2599.9,2599.7,3.84651]
[1727285154172,25.79828148,2600.0,2599.7,3.84651]
[1727285154373,1.7002056,2599.9,2599.7,3.84651]
[1727285154866,1.7002056,2599.9,2599.6,3.84663]
[1727285155040,0.79828148,2599.9,2599.6,3.84663]
[1727285155369,0.79828148,2599.8,2599.6,3.84663]
[1727285155566,1.70026021,2599.9,2599.6,3.84663]
[1727285155768,26.19742223,2600.0,2599.6,3.84663]
[1727285155769,1.70027827,2599.8,2599.6,3.84663]
[1727285155969,0.79828148,2599.8,2599.7,3.84659]
[1727285156127,26.19742223,2600.0,2599.6,3.84663]
[1727285156128,0.79828148,2599.9,2599.6,7.69328]
[1727285156334,1.70029828,2599.9,2599.6,7.69328]
[1727285156536,1.70029828,2599.9,2599.6,7.69326]
[1727285157051,1.70029828,2599.9,2599.6,3.84663]
[1727285157571,1.70029828,2599.8,2599.6,3.84663]
[1727285157799,0.90182309,2599.7,2599.4,3.84693]
[1727285157968,0.7675,2599.6,2599.4,3.84693]
[1727285158475,0.7675,2599.6,2599.2,6.84723]
[1727285158476,0.06554077,2599.5,2599.3,3.84718]
[1727285159461,0.86382225,2599.5,2599.3,3.84718]
[1727285159668,0.86382225,2599.5,2599.2,6.84726]
[1727285160165,0.06554077,2599.5,2599.2,6.84726]
[1727285160474,0.06554077,2599.5,2599.4,3.84704]
[1727285160694,0.79828148,2599.7,2599.4,3.84704]
[1727285161002,0.79828148,2599.7,2599.6,3.84674]
[1727285161363,1.70064704,2599.7,2599.6,3.84674]
[1727285161564,1.70062497,2599.7,2599.6,3.84674]
[1727285161805,1.57688148,2599.8,2599.7,3.84659]
[1727285162007,0.79828148,2599.8,2599.7,3.84659]
[1727285162181,25.80052909,2600.0,2599.9,3.8463]
[1727285162501,25.0,2600.0,2599.9,3.8463]
[1727285162667,26.70293204,2600.0,2599.9,3.8463]
[1727285164181,26.70296527,2600.0,2599.9,3.8463]
[1727285164388,30.54919527,2600.0,2599.3,3.84706]
[1727285164592,0.80052909,2599.8,2599.5,3.84682]
[1727285164906,0.80052909,2599.8,2599.3,3.84706]
[1727285164907,0.8072,2599.7,2599.3,3.84706]
[1727285165070,5.45442909,2599.7,2599.3,3.84718]
[1727285165648,0.90251697,2599.6,2599.3,3.84718]
[1727285165827,3.84719,2599.3,2598.6,3.84808]
[1727285166051,0.80052909,2599.6,2598.3,1.61338715]
[1727285166052,3.84779,2598.9,2598.3,3.84856]
[1727285166259,1.63390357,2599.0,2598.5,3.84836]
[1727285166560,1.70224645,2598.9,2598.5,3.84836]
[1727285166851,0.80060357,2598.9,2598.5,3.84836]
[1727285167053,5.48165357,2599.0,2598.5,3.84836]
[1727285167257,5.48165357,2599.0,2598.3,3.84856]
[1727285167258,5.55003477,2598.9,2598.4,3.8485]
[1727285167468,5.55003477,2598.9,2598.3,3.84856]
[1727285167469,6.35260036,2598.8,2598.3,3.84856]
[1727285167618,6.35260036,2598.8,2597.9,3.84922]
[1727285167619,1.60350357,2598.5,2597.9,3.84922]
[1727285167947,0.90102313,2598.4,2597.9,3.84922]
[1727285168106,0.80060357,2598.4,2597.9,3.84922]
[1727285168311,1.60350357,2598.5,2597.9,3.84922]
[1727285168535,0.8029,2598.3,2597.7,3.84944]
[1727285168735,0.8029,2598.3,2597.6,3.8496]
[1727285168922,0.8029,2598.3,2597.4,4.43951541]
[1727285169140,0.8029,2598.3,2597.9,3.84918]
[1727285169366,0.8029,2598.3,2597.9,7.69836]
[1727285170357,0.8029,2598.3,2598.0,3.84902]
[1727285172847,0.06329883,2598.2,2598.0,3.84902]
[1727285173052,0.8029,2598.3,2598.0,3.84902]
[1727285173344,0.06308439,2598.1,2598.0,3.84902]
[1727285173557,0.8029,2598.3,2598.0,3.84902]
[1727285173866,4.65157,2598.3,2597.9,3.84918]
[1727285174081,0.0630514,2598.2,2597.8,3.84937]
[1727285174460,4.65157,2598.3,2597.7,3.84946]
[1727285174700,0.8499514,2598.1,2597.7,3.84946]
[1727285174979,0.7869,2598.1,2597.7,3.84948]
[1727285175468,0.7869,2598.1,2597.7,7.69895]
[1727285175641,0.0630514,2598.0,2597.7,3.84947]
[1727285175834,0.0630514,2598.0,2597.8,3.84939]
[1727285176040,0.0630514,2598.0,2597.7,3.84947]
[1727285176274,0.0630514,2598.0,2597.7,7.69893]
[1727285177036,0.0630514,2598.0,2597.7,3.84946]
[1727285177237,0.0630514,2598.0,2597.8,3.84938]
[1727285177469,0.0630514,2598.0,2597.5,3.84974]
[1727285177738,0.0630514,2598.0,2597.2,3.55]
[1727285177739,0.0630514,2598.0,2597.7,3.84953]
[1727285179180,0.0630514,2598.0,2597.8,3.8494]
[1727285179683,0.0630514,2598.0,2597.5,3.84974]
[1727285179684,0.0630514,2598.0,2597.6,3.84956]
[1727285179846,0.0630514,2598.0,2597.6,3.84969]
[1727285180045,0.0630514,2598.0,2597.7,3.84946]
[1727285180742,0.0630514,2598.0,2597.6,3.84969]
[1727285180934,0.0630514,2598.0,2597.6,7.69931]
[1727285181169,0.0630514,2598.0,2597.5,3.84984]
[1727285181488,0.0630514,2598.0,2597.0,3.85057]
[1727285181489,4.60073,2597.7,2597.0,3.85057]
[1727285181970,0.06241625,2597.6,2597.3,3.85013]
[1727285182376,0.06241625,2597.6,2597.1,3.85033]
[1727285182547,0.06241625,2597.6,2597.2,3.85029]
[1727285182736,0.7779,2597.5,2597.2,3.85029]
[1727285183080,0.06241625,2597.4,2597.2,3.85029]
[1727285184337,0.06241625,2597.4,2597.0,3.8505]
[1727285184733,0.06241625,2597.4,2597.1,3.85032]
[1727285185385,0.06241625,2597.4,2597.2,3.85027]
[1727285185876,0.06241625,2597.4,2597.0,4.43951541]
[1727285185877,0.7779,2597.5,2597.3,3.85015]
[1727285187077,0.7779,2597.5,2597.3,3.85006]
[1727285187977,0.06210268,2597.4,2597.3,3.85006]
[1727285188586,0.7642,2597.8,2597.4,3.84985]
[1727285188862,0.7642,2597.8,2597.4,7.4635763]
[1727285189089,3.84964,2597.7,2597.1,3.85032]
[1727285189259,3.84964,2597.7,2597.0,3.6137263]
[1727285189260,0.8303,2597.6,2597.0,3.85059]
[1727285189595,3.85002,2597.4,2596.9,7.70135]
[1727285189889,7.69998,2597.5,2597.0,3.85047]
[1727285190455,0.8303,2597.2,2596.9,3.85074]
[1727285190654,0.8303,2597.2,2596.9,3.85066]
[1727285191089,0.8303,2597.2,2597.0,3.85057]
[1727285191299,0.8303,2597.2,2596.8,3.85088]
[1727285191617,0.8303,2597.2,2596.9,3.85067]
[1727285191901,4.68062,2597.2,2596.8,3.85088]
[1727285192107,3.85051,2597.1,2596.6,3.85108]
[1727285192276,3.85051,2597.1,2596.3,4.44879149]
[1727285192277,0.8303,2597.2,2596.8,3.85084]
[1727285193407,4.6806,2597.2,2596.8,3.85084]
[1727285193580,4.6806,2597.2,2596.5,3.85122]
[1727285193780,4.6806,2597.2,2596.7,3.85103]
[1727285194104,3.85044,2597.1,2596.6,3.85118]
[1727285194466,0.8089,2597.0,2596.6,3.85118]
[1727285195448,0.8089,2597.0,2596.6,3.85116]
[1727285196017,0.8089,2597.0,2596.5,3.85122]
[1727285196215,4.65952,2597.0,2596.5,3.85122]
[1727285196388,0.8089,2597.0,2596.6,3.85118]
[1727285196795,0.788,2596.8,2596.0,3.85206]
[1727285197004,4.63949,2596.4,2595.8,3.85225]
[1727285197217,3.85179,2596.2,2595.7,7.70495]
[1727285197393,3.85149,2596.4,2595.7,7.70495]
[1727285197394,0.788,2596.1,2595.9,3.85215]
[1727285197605,0.788,2596.1,2595.8,3.85237]
[1727285198334,0.8271,2595.9,2595.8,3.85237]
[1727285198536,4.315529,2596.4,2595.8,3.85225]
[1727285198537,0.8271,2596.3,2595.8,3.85225]
[1727285198738,0.8271,2596.3,2595.4,3.85283]
[1727285198739,0.8271,2596.3,2595.9,3.85212]
[1727285199244,0.8271,2596.3,2595.7,3.85246]
[1727285199245,0.8271,2596.3,2595.7,4.44879149]
[1727285199413,0.8271,2596.3,2596.1,3.85185]
[1727285199802,0.8271,2596.3,2596.1,7.7037]
[1727285200435,0.8271,2596.3,2596.1,3.85185]
[1727285200647,0.8271,2596.3,2593.9,1.21004036]
[1727285200648,0.8271,2596.3,2595.1,3.85331]
[1727285200811,3.85145,2596.5,2594.6,3.85411]
[1727285200812,0.8024,2595.3,2594.6,3.85411]
[1727285201145,4.44879149,2595.4,2593.4,3.85585]
[1727285201146,0.8024,2594.6,2593.8,3.85531]
[1727285201303,0.8024,2594.6,2593.4,0.15573267]
[1727285201304,0.8024,2594.6,2593.4,3.85592]
[1727285201305,0.8024,2594.5,2593.4,3.85592]
[1727285201504,3.85528,2593.9,2593.4,0.06670082]
[1727285201754,0.8024,2594.2,2593.4,0.06670082]
[1727285202055,3.55,2594.3,2593.3,0.005]
[1727285202056,0.8024,2593.5,2593.3,0.005]
[1727285202497,3.0,2594.4,2593.3,0.005]
[1727285202498,0.8264,2594.4,2593.3,0.005]
[1727285202698,4.68087,2594.4,2593.4,4.44879149]
[1727285203001,3.85492,2594.1,2593.3,0.005]
[1727285203284,0.804,2593.7,2593.3,0.005]
[1727285203571,3.85564,2593.6,2593.3,0.005]
[1727285203776,0.804,2593.7,2593.3,0.005]
[1727285203976,3.0,2594.1,2593.3,0.005]
[1727285203977,0.804,2593.4,2593.3,0.005]
[1727285204129,3.85672,2592.9,2592.6,0.005]
[1727285204466,4.44879149,2594.2,2592.6,0.005]
[1727285204467,0.804,2592.7,2592.6,0.005]
[1727285205232,0.8609559,2592.7,2592.6,0.005]
[1727285205761,0.0569559,2592.7,2592.6,0.005]
[1727285206072,0.8042,2593.1,2592.6,0.005]
[1727285206428,0.8042,2593.1,2592.6,3.86213]
[1727285206647,3.85582,2593.5,2592.6,3.86213]
[1727285206648,0.8128,2593.5,2592.9,3.85655]
[1727285206825,0.0569559,2593.0,2592.9,3.85655]
[1727285207035,0.8128,2593.5,2593.0,3.85649]
[1727285207280,0.8128,2593.5,2593.1,8.30514149]
[1727285207435,0.0569559,2593.4,2593.1,8.30514149]
[1727285208066,0.0569559,2593.4,2593.2,3.85619]
[1727285208364,0.8128,2593.9,2593.2,3.85619]
[1727285208569,0.8128,2593.9,2593.6,3.85562]
[1727285208866,0.8128,2593.9,2593.6,3.85559]